lending/lending_fUSD_20260206
["ID","MTS","AMOUNT","RATE_DAILY","PERIOD"]
[404677034,1770419439684,-534.44506203,0.00012676,2]
[404677035,1770419439694,-534.44506203,0.00012676,2]
[404677036,1770419439703,-534.44506203,0.00012676,2]
[404677037,1770419439712,-534.44506203,0.00012676,2]
[404677038,1770419439722,-534.44506203,0.00012676,2]
[404677039,1770419439731,-534.44506203,0.00012676,2]
[404677040,1770419439740,-534.44506203,0.00012676,2]
[404677041,1770419439749,-534.44506203,0.00012676,2]
[404677042,1770419439759,-534.44506203,0.00012676,2]
[404677043,1770419439769,-534.44506203,0.00012676,2]
[404677044,1770419439778,-534.44506203,0.00012676,2]
[404677045,1770419439787,-708.53729826,0.00012676,2]
[404677046,1770419439797,-708.53729826,0.00012676,2]
[404677049,1770419439806,-708.53729826,0.00012676,2]
[404677051,1770419439815,-708.53729826,0.00012676,2]
[404677052,1770419439824,-708.53729826,0.00012676,2]
[404677053,1770419439833,-708.53729826,0.00012676,2]
[404677054,1770419439842,-708.53729826,0.00012676,2]
[404677055,1770419439851,-708.53729826,0.00012676,2]
[404677056,1770419439860,-708.53729826,0.00012676,2]
[404677057,1770419439869,-708.53729826,0.00012676,2]
[404677058,1770419439878,-708.53729826,0.00012676,2]
[404677059,1770419439888,-708.53729826,0.00012676,2]
[404677060,1770419439897,-708.53729826,0.00012676,2]
[404677061,1770419439906,-708.53729826,0.00012676,2]
[404677062,1770419439916,-708.53729826,0.00012676,2]
[404677063,1770419439925,-708.53729826,0.00012676,2]
[404677064,1770419439935,-708.53729826,0.00012676,2]
[404677065,1770419439944,-708.53729826,0.00012676,2]
[404677066,1770419439953,-708.53729826,0.00012676,2]
[404677067,1770419439963,-708.53729826,0.00012676,2]
[404677068,1770419439972,-708.53729826,0.00012676,2]
[404677069,1770419439981,-708.53729826,0.00012676,2]
[404677070,1770419439991,-708.53729826,0.00012676,2]
[404677071,1770419440000,-708.53729826,0.00012676,2]
[404677073,1770419440009,-708.53729826,0.00012676,2]
[404677075,1770419440018,-708.53729826,0.00012676,2]
[404677076,1770419440028,-708.53729826,0.00012676,2]
[404677077,1770419440037,-708.53729826,0.00012676,2]
[404677078,1770419440049,-708.53729826,0.00012676,2]
[404677080,1770419440058,-675.19436659,0.00012676,2]
[404677081,1770419440068,-675.19436659,0.00012676,2]
[404677082,1770419440077,-675.19436659,0.00012676,2]
[404677083,1770419440087,-675.19436659,0.00012676,2]
[404677084,1770419440096,-675.19436659,0.00012676,2]
[404677085,1770419440105,-675.19436659,0.00012676,2]
[404677086,1770419440114,-675.19436659,0.00012676,2]
[404677087,1770419440123,-675.19436659,0.00012676,2]
[404677088,1770419440132,-32.13770648,0.00012676,2]
[404677089,1770419440144,-643.05666011,0.00012676,2]
[404677090,1770419440153,-675.19436659,0.00012676,2]
[404677091,1770419440162,-675.19436659,0.00012676,2]
[404677092,1770419440172,-675.19436659,0.00012676,2]
[404677093,1770419440181,-675.19436659,0.00012676,2]
[404677094,1770419440191,-675.19436659,0.00012676,2]
[404677095,1770419440200,-675.19436659,0.00012676,2]
[404677096,1770419440209,-675.19436659,0.00012676,2]
[404677097,1770419440219,-675.19436655,0.00012676,2]
[404677098,1770419440228,-1485.48490312,0.00012677,2]
[404677099,1770419440239,-580.23789574,0.00012677,2]
[404677100,1770419440250,-2836.34429703,0.00012677,2]
[404677101,1770419440261,-1624602.37963777,0.00012677,2]
[404677102,1770419440276,-4865.58111011,0.00012677,2]
[404677103,1770419440287,-19436.80445432,0.00012677,2]
[404677104,1770419440298,-564.11572434,0.00012677,2]
[404677105,1770419440310,-4568.3,0.00012677,2]
[404677106,1770419440324,-3157.5,0.00012677,2]
[404677107,1770419440339,-1019.64210675,0.00012677,2]
[404677108,1770419440350,-610873.58424924,0.00012677,2]
[404677109,1770419440360,-2923.365837,0.00012677,2]
[404677110,1770419440372,-475.54954496,0.00012677,2]
[404677111,1770419440472,-1222611.11023962,0.00012677,2]
[404677112,1770419440482,-365.06238246,0.0001268,2]
[404677113,1770419440491,-150.0,0.0001268,2]
[404677114,1770419440501,-234.75735462,0.00012693,2]
[404677115,1770419440510,-2500.0,0.00012693,2]
[404677116,1770419440519,-166.66,0.00012722,2]
[404677117,1770419440528,-210.24315935,0.00012777,2]
[404677118,1770419440537,-999.99,0.00012793,2]
[404677119,1770419440547,-9999.99,0.00012793,2]
[404677120,1770419440556,-150.99,0.00012793,2]
[404677121,1770419440565,-5314.83,0.00012793,2]
[404677122,1770419440574,-299.99,0.00012793,2]
[404677123,1770419440584,-365.06238246,0.00012793,2]
[404677124,1770419440593,-9138.69,0.00012893,2]
[404677125,1770419440602,-716.07218946,0.00012962,2]
[404677126,1770419440611,-183.26956192,0.00012969,2]
[404677127,1770419440621,-2479.75,0.00012979,2]
[404677128,1770419440630,-151.0,0.00012981,2]
[404677129,1770419440639,-151.0,0.00012981,2]
[404677130,1770419440802,-151.0,0.00012981,2]
[404677131,1770419440812,-151.0,0.00012981,2]
[404677132,1770419440821,-151.0,0.00012981,2]
[404677133,1770419440830,-151.0,0.00012981,2]
[404677134,1770419440839,-151.0,0.00012981,2]
[404677135,1770419440848,-151.0,0.00012981,2]
[404677136,1770419440858,-151.0,0.00012981,2]
[404677137,1770419440867,-151.0,0.00012981,2]
[404677138,1770419440878,-151.0,0.00012981,2]
[404677139,1770419440887,-151.0,0.00012981,2]
[404677140,1770419440896,-151.0,0.00012981,2]
[404677141,1770419440905,-151.0,0.00012981,2]
[404677142,1770419440914,-151.0,0.00012981,2]
[404677143,1770419440923,-151.0,0.00012981,2]
[404677144,1770419440932,-151.0,0.00012981,2]
[404677145,1770419440941,-151.0,0.00012981,2]
[404677146,1770419440951,-151.0,0.00012981,2]
[404677147,1770419440960,-151.0,0.00012981,2]
[404677148,1770419440969,-4360.722,0.00012987,2]
[404677149,1770419440978,-314.917,0.00012987,2]
[404677150,1770419440987,-151.0,0.00012987,2]
[404677151,1770419440997,-151.0,0.00012987,2]
[404677152,1770419441006,-33301.6812,0.0001299,2]
[404677153,1770419441015,-1000.0,0.0001299,2]
[404677154,1770419441024,-250.0,0.00013085,2]
[404677155,1770419441034,-9138.48,0.0001311,2]
[404677156,1770419441044,-166.66,0.00013129,2]
[404677157,1770419441053,-1161.8658499,0.00013171,2]
[404677158,1770419441063,-209.57,0.00013208,2]
[404677159,1770419441072,-3033.56205983,0.0001334,2]
[404677160,1770419441081,-3240.0,0.00013425,2]
[404677161,1770419441090,-166.66,0.00013535,2]
[404677162,1770419441100,-324.99,0.00013551,2]
[404677163,1770419441109,-234.75735457,0.00013561,2]
[404677164,1770419441118,-200.0,0.00013698,2]
[404677165,1770419441127,-500.0,0.00013698,2]
[404677166,1770419441136,-500.0,0.00013698,2]
[404677167,1770419441145,-500.0,0.00013698,2]
[404677168,1770419441154,-500.0,0.00013698,2]
[404677169,1770419441163,-500.0,0.00013698,2]
[404677170,1770419441173,-500.0,0.00013698,2]
[404677171,1770419441182,-500.0,0.00013698,2]
[404677172,1770419441191,-500.0,0.00013698,2]
[404677173,1770419441201,-500.0,0.00013698,2]
[404677174,1770419441210,-500.0,0.00013698,2]
[404677175,1770419441220,-500.0,0.00013698,2]
[404677176,1770419441230,-500.0,0.00013698,2]
[404677177,1770419441239,-377.87779755,0.00013698,2]
[404677178,1770419441248,-500.0,0.00013698,2]
[404677179,1770419441257,-500.0,0.00013698,2]
[404677180,1770419441266,-500.0,0.00013698,2]
[404677181,1770419441275,-500.0,0.00013698,2]
[404677182,1770419441284,-500.0,0.00013698,2]
[404677183,1770419441295,-500.0,0.00013698,2]
[404677184,1770419441304,-500.0,0.00013698,2]
[404677185,1770419441313,-204.13102923,0.00013698,2]
[404677186,1770419441325,-374.7451931,0.00013698,2]
[404677187,1770419441334,-500.0,0.00013698,2]
[404677188,1770419441344,-500.0,0.00013698,2]
[404677189,1770419441353,-500.0,0.00013698,2]
[404677190,1770419441363,-380.63494351,0.00013698,2]
[404677191,1770419441372,-500.0,0.00013698,2]
[404677192,1770419441382,-500.0,0.00013698,2]
[404677193,1770419441392,-500.0,0.00013698,2]
[404677194,1770419441402,-500.0,0.00013698,2]
[404677195,1770419441411,-500.0,0.00013698,2]
[404677196,1770419441420,-471.0960947,0.00013698,2]
[404677197,1770419441429,-500.0,0.00013698,2]
[404677198,1770419441439,-500.0,0.00013698,2]
[404677199,1770419441448,-500.0,0.00013698,2]
[404677200,1770419441458,-500.0,0.00013698,2]
[404677201,1770419441466,-500.0,0.00013698,2]
[404677202,1770419441475,-500.0,0.00013698,2]
[404677203,1770419441485,-171.67735349,0.00013698,2]
[404677204,1770419441494,-500.0,0.00013698,2]
[404677205,1770419441504,-166.98,0.00013698,2]
[404677206,1770419441513,-384.73810332,0.00013698,2]
[404677207,1770419441522,-1161.8658499,0.00013762,2]
[404677208,1770419441531,-255.0,0.00013778,2]
[404677209,1770419441540,-600.0,0.00013871,2]
[404677210,1770419441550,-205.28,0.00013892,2]
[404677211,1770419441559,-278.63,0.00013902,2]
[404677212,1770419441568,-420.0,0.00013905,2]
[404677213,1770419441578,-1137.0,0.00013942,2]
[404677214,1770419441588,-166.66,0.00013942,2]
[404677215,1770419441597,-3033.56205983,0.000141,2]
[404677216,1770419441607,-166.66,0.00014349,2]
[404677217,1770419441617,-1161.8658499,0.00014353,2]
[404677218,1770419441626,-234.75735457,0.00014429,2]
[404677219,1770419441636,-165.61,0.00014855,2]
[404677220,1770419441645,-3033.56205983,0.0001486,2]
[404677221,1770419441654,-1161.8658499,0.00014944,2]
[404677222,1770419441664,-433.0,0.00014982,2]
[404677223,1770419441673,-500.0,0.00014998,2]
[404677224,1770419441683,-500.0,0.00014998,2]
[404677225,1770419441692,-441.42781649,0.00014998,2]
[404677226,1770419441702,-250.0,0.00015,2]
[404677227,1770419441712,-225.37,0.00015068,2]
[404677228,1770419441722,-1600.0,0.00015127,2]
[404677229,1770419441731,-920.0,0.00015217,2]
[404677230,1770419441741,-1816.71736575,0.0001524,2]
[404677231,1770419441750,-587.0,0.00015254,2]
[404677232,1770419441760,-200.0,0.00015276,2]
[404677233,1770419441769,-234.75735457,0.00015297,2]
[404677234,1770419441779,-716.07218945,0.00015431,2]
[404677235,1770419441788,-1161.8658499,0.00015536,2]
[404677236,1770419441797,-3033.56205983,0.0001562,2]
[404677237,1770419441807,-1161.8658499,0.00016127,2]
[404677238,1770419441816,-234.75735457,0.00016164,2]
[404677239,1770419441826,-736.0,0.00016275,2]
[404677240,1770419441836,-317.78859512,0.00016438,2]
[404677241,1770419441845,-225.37,0.00016438,2]
[404677242,1770419441854,-227.37,0.00016438,2]
[404677243,1770419441863,-165.79,0.00016712,2]
[404677244,1770419441873,-823.0,0.00016734,2]
[404677245,1770419441882,-184.22350994,0.00016819,5]
[404677246,1770419441891,-300.0,0.00017,2]
[404677247,1770419441900,-500.0,0.00017,2]
[404677248,1770419441910,-1600.0,0.00017018,2]
[404677249,1770419441919,-234.75735457,0.00017032,2]
[404677250,1770419441929,-200.0,0.00017164,2]
[404677251,1770419441938,-1213.0,0.00017195,2]
[404677252,1770419441948,-3254.0,0.00017195,2]
[404677253,1770419441957,-6582.0,0.00017195,2]
[404677254,1770419441966,-200.0,0.00017371,2]
[404677255,1770419441976,-200.0,0.00017428,2]
[404677256,1770419441985,-416.0,0.00017537,2]
[404677257,1770419441994,-416.0,0.00017638,2]
[404677258,1770419442003,-416.0,0.00017676,2]
[404677259,1770419442012,-618.0,0.00017694,2]
[404677260,1770419442021,-1500.0,0.000177,2]
[404677261,1770419442031,-200.0,0.00017701,2]
[404677262,1770419442040,-150.0,0.00017808,2]
[404677263,1770419442049,-469.1358,0.0001782,2]
[404677264,1770419442059,-469.1358,0.0001782,2]
[404677265,1770419442068,-564.89892305,0.00017828,2]
[404677266,1770419442077,-416.0,0.00017838,2]
[404677267,1770419442086,-416.0,0.00017862,2]
[404677268,1770419442096,-150.0,0.00017863,2]
[404677269,1770419442106,-416.0,0.00017872,2]
[404677270,1770419442115,-500.0,0.000179,2]
[404677271,1770419442124,-716.07218945,0.000179,2]
[404677272,1770419442134,-234.75735457,0.000179,2]
[404677273,1770419442143,-1517.01420291,0.000179,2]
[404677274,1770419442153,-1816.71736575,0.000179,2]
[404677275,1770419442162,-500.0,0.000179,2]
[404677276,1770419442172,-500.0,0.000179,2]
[404677277,1770419442181,-500.0,0.000179,2]
[404677278,1770419442190,-500.0,0.000179,2]
[404677279,1770419442199,-500.0,0.000179,2]
[404677280,1770419442208,-500.0,0.000179,2]
[404677281,1770419442217,-500.0,0.000179,2]
[404677282,1770419442227,-347.68754819,0.000179,2]
[404677283,1770419442236,-200.0,0.00017918,2]
[404677284,1770419442245,-416.0,0.00017933,2]
[404677285,1770419442254,-200.0,0.00017955,2]
[404677286,1770419442263,-53630.9390876,0.00017977,2]
[404677287,1770419442272,-18258.2162398,0.00017977,2]
[404677288,1770419442281,-4982.9817737,0.00017977,2]
[404677289,1770419442291,-3099.4986487,0.00017977,2]
[404677290,1770419442300,-845.9065809,0.00017977,2]
[404677291,1770419442309,-416.0,0.00017986,2]
[404677292,1770419442322,-183.26956192,0.0001799,2]
[404677293,1770419442331,-151.0,0.00017997,2]
[404677294,1770419442341,-1499.20404486,0.00017999,2]
[404677295,1770419442350,-411.23606988,0.00017999,2]
[404677296,1770419442360,-202.419,0.00017999,2]
[404677297,1770419442369,-300.0,0.00017999,2]
[404677298,1770419442379,-300.0,0.00017999,2]
[404677299,1770419442388,-666.0,0.00017999,2]
[404677300,1770419442399,-300.0,0.00017999,2]
[404677301,1770419442409,-666.0,0.00017999,2]
[404677302,1770419442418,-250.0,0.00017999,2]
[404677303,1770419442427,-150.0,0.00017999,2]
[404677304,1770419442437,-213.0,0.00017999,2]
[404677305,1770419442445,-150.069,0.00017999,2]
[404677306,1770419442455,-150.0,0.00017999,2]
[404677307,1770419442463,-150.075,0.00017999,2]
[404677308,1770419442472,-150.0,0.00017999,2]
[404677309,1770419442481,-150.06,0.00017999,2]
[404677310,1770419442491,-150.0,0.00017999,2]
[404677311,1770419442500,-150.0,0.00017999,2]
[404677312,1770419442509,-150.072,0.00017999,2]
[404677313,1770419442518,-150.0,0.00017999,2]
[404677314,1770419442527,-1410.0,0.00017999,2]
[404677315,1770419442536,-1245.271,0.00017999,2]
[404677316,1770419442546,-150.0,0.00017999,2]
[404677317,1770419442555,-1205.0,0.00017999,2]
[404677318,1770419442565,-926.315,0.00017999,2]
[404677319,1770419442574,-1044026.82737637,0.00018,2]
[404677320,1770419442584,-1029293.1845058,0.00018,2]
[404677328,1770419443852,-738.15577013,0.0001638,2]
[404677329,1770419443913,-345.72,0.0001638,2]
[404677330,1770419444869,-1949.6862897,0.0001638,2]
[404677331,1770419444879,-1161.8658499,0.00016718,2]
[404677332,1770419444888,-494.9488604,0.00018,2]
[404677335,1770419445994,-4160.19999996,0.00018,2]
[404677336,1770419446005,-2784.4999995,0.00018,2]
[404677337,1770419446055,-391.43999997,0.00018,2]
[404677338,1770419446117,-243404.77782372,0.00018,2]
[404677339,1770419446129,-42861.19006252,0.00018,2]
[404677342,1770419484925,10000.0,0.00035,120]
[404677346,1770419663000,788.25,0.00035589,120]
[404677347,1770419840787,-500.0,9.393e-05,2]
[404677348,1770419840817,-500.0,9.393e-05,2]
[404677349,1770419886900,-177.82239355,9.393e-05,2]
[404677380,1770420332092,9973.23781844,8.36e-06,2]
[404677381,1770420514444,6063.41,0.00035616,120]
[404677398,1770420632134,-710.159,0.0001,2]
[404677400,1770420632144,-232.0,0.0001,2]
[404677402,1770420632154,-195.0,0.00010969,2]
[404677404,1770420632163,-195.0,0.00011,2]
[404677406,1770420632173,-166.66,0.00011039,2]
[404677408,1770420632183,-195.0,0.00011155,2]
[404677410,1770420632192,-166.66,0.00011272,2]
[404677412,1770420632201,-1852.42,0.00011378,2]
[404677414,1770420632211,-166.66,0.00011504,2]
[404677416,1770420632220,-187.47548011,0.00011581,2]
[404677417,1770420632231,-1609.00451989,0.00011581,2]
[404677418,1770420632241,-154.08,0.00011682,2]
[404677419,1770420632250,-166.66,0.00011737,2]
[404677420,1770420632260,-250.0,0.00011756,2]
[404677421,1770420632269,-150.0,0.0001183,2]
[404677422,1770420632279,-166.66,0.00011969,2]
[404677423,1770420632288,-48.59548043,0.00012103,2]
[404677424,1770420632353,-201.40451957,0.00012103,2]
[404677425,1770420632363,-195.0,0.00012143,2]
[404677426,1770420632372,-195.0,0.00012143,2]
[404677427,1770420632382,-1200.0,0.00012175,2]
[404677428,1770420632391,-943.36054846,0.00012176,2]
[404677430,1770420632434,-551.00923512,0.00012176,2]
[404677434,1770420632460,-780.80176131,0.00012176,2]
[404677436,1770420632470,-43.71485831,0.00012176,2]
[404677437,1770420632482,-136.7038371,0.00012176,2]
[404677438,1770420632491,-207.8761629,0.00012176,2]
[404677439,1770420632503,-1003.2687476,0.00012176,2]
[404677440,1770420632513,-166.66,0.00012201,2]
[404677441,1770420632522,-183.26956193,0.00012263,2]
[404677442,1770420632532,-151.0,0.0001227,2]
[404677443,1770420632542,-151.0,0.0001227,2]
[404677444,1770420632552,-461.55402195,0.00012272,2]
[404677446,1770420638150,-38.44597805,0.00012272,2]
[404677447,1770420638159,-220.55210345,0.00012272,2]
[404677448,1770420638168,-276.41984475,0.00012272,2]
[404677450,1770420638212,-21.37509223,0.00012272,2]
[404677451,1770420638222,-434.40775994,0.00012272,2]
[404677452,1770420638232,-500.0,0.00012272,2]
[404677453,1770420638241,-500.0,0.00012272,2]
[404677454,1770420638251,-500.0,0.00012272,2]
[404677455,1770420638260,-500.0,0.00012272,2]
[404677456,1770420638269,-481.21714788,0.00012272,2]
[404677457,1770420638280,-18.78285212,0.00012272,2]
[404677458,1770420638289,-500.0,0.00012272,2]
[404677459,1770420638299,-500.0,0.00012272,2]
[404677460,1770420638308,-500.0,0.00012272,2]
[404677461,1770420638317,-500.0,0.00012272,2]
[404677462,1770420638327,-500.0,0.00012272,2]
[404677463,1770420638337,-500.0,0.00012272,2]
[404677464,1770420638347,-500.0,0.00012272,2]
[404677465,1770420638356,-500.0,0.00012272,2]
[404677466,1770420638366,-386.9103404,0.00012272,2]
[404677467,1770420638375,-500.0,0.00012272,2]
[404677468,1770420638385,-500.0,0.00012272,2]
[404677469,1770420638394,-500.0,0.00012272,2]
[404677470,1770420638403,-500.0,0.00012272,2]
[404677471,1770420638412,-500.0,0.00012272,2]
[404677472,1770420638422,-150.0,0.00012272,2]
[404677473,1770420638431,-17879.41263867,0.00012273,2]
[404677474,1770420638442,-1632055.37963777,0.00012273,2]
[404677485,1770420640490,-849.23220107,0.00012273,2]
[404677486,1770420640562,-1849215.97552249,0.00012273,2]
[404677487,1770420640572,-841.755,0.00012274,2]
[404677488,1770420640581,-929.49267992,0.00012276,2]
[404677489,1770420640590,-841.84381056,0.00012276,2]
[404677490,1770420640600,-234.75735462,0.00012276,2]
[404677491,1770420640611,-1024.0,0.00012356,2]
[404677492,1770420640620,-2500.0,0.00012376,2]
[404677493,1770420640629,-210.24315935,0.00012376,2]
[404677494,1770420640638,-150.99,0.00012377,2]
[404677495,1770420640647,-275.91,0.000124,2]
[404677496,1770420640657,-243.37492164,0.000124,2]
[404677497,1770420640667,-5314.83,0.00012466,2]
[404677498,1770420640676,-299.99,0.00012466,2]
[404677499,1770420640688,-9999.99,0.00012466,2]
[404677500,1770420640697,-877.32,0.00012466,2]
[404677501,1770420640706,-151.0,0.00012468,2]
[404677502,1770420640715,-151.0,0.00012468,2]
[404677503,1770420640724,-4596.639,0.00012475,2]
[404677504,1770420640733,-346.353,0.00012475,2]
[404677505,1770420640742,-243.37492164,0.00012476,2]
[404677506,1770420640751,-243.37492164,0.00012477,2]
[404677507,1770420640761,-308.03413378,0.000125,2]
[404677509,1770420640770,-33301.6812,0.00012577,2]
[404677510,1770420640779,-1697.28,0.00012595,2]
[404677511,1770420640788,-1000.0,0.00012693,2]
[404677512,1770420640798,-250.0,0.00012851,2]
[404677513,1770420640807,-841.84381053,0.00012901,2]
[404677514,1770420640817,-929.49267992,0.00012901,2]
[404677515,1770420640827,-2275.17154487,0.00012994,2]
[404677516,1770420640836,-5616.6537447,0.00013,2]
[404677517,1770420640846,-357.78028329,0.00013,2]
[404677518,1770420640855,-677.9138459,0.00013,2]
[404677519,1770420640864,-150.0,0.0001317,2]
[404677520,1770420640873,-250.0,0.00013213,2]
[404677521,1770420640882,-234.75735457,0.00013213,2]
[404677522,1770420640891,-150.0,0.00013225,2]
[404677523,1770420640901,-160.0,0.00013269,2]
[404677524,1770420640910,-200.0,0.0001328,2]
[404677525,1770420640920,-255.0,0.00013364,2]
[404677526,1770420640929,-1680.0,0.00013393,2]
[404677527,1770420640939,-841.84381053,0.00013525,2]
[404677528,1770420640948,-929.49267992,0.00013526,2]
[404677529,1770420640957,-154.08,0.0001363,2]
[404677530,1770420640966,-200.0,0.00013698,2]
[404677531,1770420640975,-500.0,0.00013698,2]
[404677532,1770420640985,-500.0,0.00013698,2]
[404677533,1770420640994,-500.0,0.00013698,2]
[404677534,1770420641003,-500.0,0.00013698,2]
[404677535,1770420641012,-500.0,0.00013698,2]
[404677536,1770420641021,-500.0,0.00013698,2]
[404677537,1770420641030,-500.0,0.00013698,2]
[404677538,1770420641039,-500.0,0.00013698,2]
[404677539,1770420641049,-500.0,0.00013698,2]
[404677540,1770420641058,-500.0,0.00013698,2]
[404677541,1770420641067,-500.0,0.00013698,2]
[404677542,1770420641076,-500.0,0.00013698,2]
[404677543,1770420641086,-377.87779755,0.00013698,2]
[404677544,1770420641095,-374.7451931,0.00013698,2]
[404677545,1770420641105,-500.0,0.00013698,2]
[404677546,1770420641114,-500.0,0.00013698,2]
[404677547,1770420641123,-500.0,0.00013698,2]
[404677548,1770420641132,-500.0,0.00013698,2]
[404677549,1770420641141,-500.0,0.00013698,2]
[404677550,1770420641150,-500.0,0.00013698,2]
[404677551,1770420641159,-500.0,0.00013698,2]
[404677552,1770420641168,-204.13102923,0.00013698,2]
[404677553,1770420641178,-500.0,0.00013698,2]
[404677554,1770420641187,-500.0,0.00013698,2]
[404677555,1770420641196,-500.0,0.00013698,2]
[404677556,1770420641205,-380.63494351,0.00013698,2]
[404677557,1770420641214,-500.0,0.00013698,2]
[404677558,1770420641223,-500.0,0.00013698,2]
[404677559,1770420641232,-500.0,0.00013698,2]
[404677560,1770420641241,-500.0,0.00013698,2]
[404677561,1770420641250,-500.0,0.00013698,2]
[404677562,1770420641259,-471.0960947,0.00013698,2]
[404677563,1770420641268,-500.0,0.00013698,2]
[404677564,1770420641278,-171.67735349,0.00013698,2]
[404677565,1770420641287,-500.0,0.00013698,2]
[404677566,1770420641296,-500.0,0.00013698,2]
[404677567,1770420641305,-500.0,0.00013698,2]
[404677568,1770420641314,-500.0,0.00013698,2]
[404677569,1770420641324,-500.0,0.00013698,2]
[404677570,1770420641333,-500.0,0.00013698,2]
[404677571,1770420641343,-166.98,0.00013698,2]
[404677572,1770420641352,-384.73810332,0.00013698,2]
[404677573,1770420641361,-2275.17154487,0.00013811,2]
[404677574,1770420641370,-841.84381053,0.0001415,2]
[404677575,1770420641379,-929.49267992,0.00014151,2]
[404677576,1770420641389,-234.75735457,0.00014151,2]
[404677577,1770420641398,-278.63,0.0001434,2]
[404677578,1770420641407,-205.28,0.00014424,2]
[404677579,1770420641416,-433.0,0.00014554,2]
[404677580,1770420641426,-2275.17154487,0.00014629,2]
[404677581,1770420641435,-2351.0,0.00014732,2]
[404677582,1770420641444,-600.0,0.00014773,2]
[404677583,1770420641453,-841.84381053,0.00014774,2]
[404677584,1770420641462,-929.49267992,0.00014776,2]
[404677585,1770420641472,-250.0,0.00015,2]
[404677586,1770420641482,-2052.7152301,0.00015,2]
[404677587,1770420641491,-7991.45940556,0.00015,2]
[404677588,1770420641501,-1211.1449105,0.00015038,2]
[404677589,1770420641510,-234.75735457,0.00015088,2]
[404677590,1770420641519,-16257.11,0.00015128,2]
[404677591,1770420641529,-500.0,0.00015257,2]
[404677592,1770420641539,-841.84381053,0.00015399,2]
[404677593,1770420641548,-929.49267992,0.000154,2]
[404677594,1770420641558,-2275.17154487,0.00015447,2]
[404677595,1770420641567,-154.08,0.00015577,2]
[404677596,1770420641578,-2242.664997,0.00015807,2]
[404677597,1770420641588,-736.0,0.00015843,2]
[404677598,1770420641597,-3013.85,0.00015849,2]
[404677599,1770420641609,-3319.5632726,0.00016,2]
[404677600,1770420641620,-841.84381053,0.00016023,2]
[404677601,1770420641629,-929.49267992,0.00016025,2]
[404677602,1770420641639,-234.75735457,0.00016025,2]
[404677603,1770420641649,-5000.00111389,0.000162,5]
[404677604,1770420641658,-3292.0,0.00016205,2]
[404677605,1770420641667,-2275.17154487,0.00016265,2]
[404677606,1770420641677,-317.78859512,0.00016438,2]
[404677607,1770420641688,-841.84381053,0.00016648,2]
[404677608,1770420641698,-929.49267992,0.0001665,2]
[404677609,1770420641707,-234.75735457,0.00016963,2]
[404677610,1770420641717,-500.0,0.00017,2]
[404677611,1770420641726,-300.0,0.00017,2]
[404677612,1770420641735,-388200.20928479,0.00017,2]
[404677613,1770420641744,-2275.17154487,0.00017082,2]
[404677614,1770420641754,-391.08348366,0.00017099,2]
[404677615,1770420641763,-1500.0,0.000171,2]
[404677616,1770420641772,-468.0,0.00017254,2]
[404677617,1770420641782,-841.84381053,0.00017272,2]
[404677618,1770420641792,-929.49267992,0.00017275,2]
[404677619,1770420641801,-1000.0,0.00017281,2]
[404677620,1770420641811,-1500.0,0.000174,2]
[404677621,1770420641821,-200.0,0.00017483,2]
[404677622,1770420641830,-154.08,0.00017524,2]
[404677623,1770420641840,-200.0,0.00017633,2]
[404677624,1770420641849,-1499.20404486,0.0001764,2]
[404677625,1770420642028,-150.0,0.00017808,2]
[404677626,1770420642037,-156.3786,0.0001782,2]